fUSD/lending_fUSD_20240814
["ID","MTS","AMOUNT","RATE_DAILY","PERIOD"]
[334885117,1723626666496,-500.0,0.00015342,2]
[334885119,1723626666506,-500.0,0.00015342,2]
[334885121,1723626666516,-556.33,0.00015342,2]
[334885123,1723626666525,-642.83,0.00015342,2]
[334885125,1723626666534,-500.0,0.00015342,2]
[334885127,1723626666545,-500.0,0.00015342,2]
[334885129,1723626666554,-659.96,0.00015342,2]
[334885130,1723626666564,-635.37,0.00015342,2]
[334885132,1723626666573,-810.55,0.00015342,2]
[334885134,1723626666583,-500.0,0.00015342,2]
[334885136,1723626666593,-500.0,0.00015342,2]
[334885138,1723626666602,-500.0,0.00015342,2]
[334885140,1723626666611,-500.0,0.00015342,2]
[334885142,1723626666621,-500.0,0.00015342,2]
[334885144,1723626666631,-734.11,0.00015342,2]
[334885146,1723626666640,-893.45,0.00015342,2]
[334885148,1723626666651,-1023.98,0.00015342,2]
[334885150,1723626666661,-2346.66,0.00015342,2]
[334885152,1723626666671,-500.0,0.00015342,2]
[334885154,1723626666680,-500.0,0.00015342,2]
[334885156,1723626666689,-7848.21,0.00015342,2]
[334885158,1723626666699,-687.93,0.00015342,2]
[334885160,1723626666709,-743.2,0.00015342,2]
[334885162,1723626666718,-500.0,0.00015342,2]
[334885164,1723626666728,-500.0,0.00015342,2]
[334885166,1723626666737,-975.29,0.00015342,2]
[334885168,1723626666747,-500.0,0.00015342,2]
[334885170,1723626666756,-150.0,0.00015347,5]
[334885172,1723626666766,-624.51776466,0.00015369,2]
[334885174,1723626666775,-214.0,0.0001537,2]
[334885176,1723626666785,-200.0,0.00015373,2]
[334885178,1723626666794,-461.7492661,0.00015389,2]
[334885180,1723626666803,-92410.75,0.000154,2]
[334885182,1723626666813,-151.0,0.000154,2]
[334885184,1723626666822,-151.0,0.000154,2]
[334885186,1723626666832,-159.63,0.00015518,2]
[334885188,1723626666841,-5144.192706,0.00015605,2]
[334885190,1723626666851,-16821.1936746,0.00015605,2]
[334885192,1723626666860,-2833.1733838,0.00015605,2]
[334885193,1723626666869,-2144.81584022,0.00015608,2]
[334885195,1723626666878,-151.0,0.00015615,2]
[334885197,1723626666888,-154.515367,0.00015616,2]
[334885199,1723626666897,-500.0,0.00015616,2]
[334885201,1723626666906,-601.4,0.00015616,2]
[334885203,1723626666915,-500.0,0.00015616,2]
[334885205,1723626666925,-849.17,0.00015616,2]
[334885207,1723626666934,-500.0,0.00015616,2]
[334885209,1723626666943,-500.0,0.00015616,2]
[334885211,1723626666952,-500.0,0.00015616,2]
[334885213,1723626666961,-500.0,0.00015616,2]
[334885215,1723626666971,-500.0,0.00015616,2]
[334885217,1723626666980,-500.0,0.00015616,2]
[334885218,1723626666989,-500.0,0.00015616,2]
[334885220,1723626666998,-279.75190015,0.00015616,2]
[334885222,1723626667007,-500.0,0.00015616,2]
[334885224,1723626667016,-500.0,0.00015616,2]
[334885226,1723626667025,-500.0,0.00015616,2]
[334885228,1723626667035,-500.0,0.00015616,2]
[334885230,1723626667044,-500.0,0.00015616,2]
[334885232,1723626667053,-500.0,0.00015616,2]
[334885233,1723626667062,-500.0,0.00015616,2]
[334885235,1723626667071,-500.0,0.00015616,2]
[334885237,1723626667081,-500.0,0.00015616,2]
[334885239,1723626667090,-500.0,0.00015616,2]
[334885241,1723626667100,-512.44,0.00015616,2]
[334885243,1723626667109,-500.0,0.00015616,2]
[334885245,1723626667118,-162.71109387,0.00015616,2]
[334885247,1723626667128,-500.0,0.00015616,2]
[334885249,1723626667138,-500.0,0.00015616,2]
[334885250,1723626667147,-678.29,0.00015616,2]
[334885252,1723626667158,-511.38,0.00015616,2]
[334885254,1723626667167,-500.0,0.00015616,2]
[334885256,1723626667177,-378.3,0.00015616,2]
[334885258,1723626667189,-500.0,0.00015616,2]
[334885260,1723626667198,-500.0,0.00015616,2]
[334885262,1723626667207,-500.0,0.00015616,2]
[334885264,1723626667217,-500.0,0.00015616,2]
[334885266,1723626667227,-500.0,0.00015616,2]
[334885267,1723626667237,-500.0,0.00015616,2]
[334885268,1723626667247,-500.0,0.00015616,2]
[334885269,1723626667256,-500.0,0.00015616,2]
[334885270,1723626667266,-500.0,0.00015616,2]
[334885271,1723626667276,-500.0,0.00015616,2]
[334885272,1723626667286,-500.0,0.00015616,2]
[334885273,1723626667295,-1974.32,0.00015616,2]
[334885274,1723626667305,-500.0,0.00015616,2]
[334885275,1723626667314,-500.0,0.00015616,2]
[334885277,1723626667324,-500.0,0.00015616,2]
[334885279,1723626667333,-226.61,0.00015616,2]
[334885281,1723626667343,-500.0,0.00015616,2]
[334885283,1723626667352,-500.0,0.00015616,2]
[334885285,1723626667362,-500.0,0.00015616,2]
[334885287,1723626667371,-591.86,0.00015616,2]
[334885288,1723626667381,-666.36,0.00015616,2]
[334885291,1723626667390,-500.0,0.00015616,2]
[334885293,1723626667400,-500.0,0.00015616,2]
[334885294,1723626667410,-500.0,0.00015616,2]
[334885296,1723626667422,-500.0,0.00015616,2]
[334885298,1723626667432,-500.0,0.00015616,2]
[334885300,1723626667442,-554.42,0.00015616,2]
[334885302,1723626667451,-500.0,0.00015616,2]
[334885304,1723626667462,-500.0,0.00015616,2]
[334885305,1723626667472,-500.0,0.00015616,2]
[334885307,1723626667482,-500.0,0.00015616,2]
[334885309,1723626667494,-500.0,0.00015616,2]
[334885311,1723626667503,-500.0,0.00015616,2]
[334885313,1723626667512,-500.0,0.00015616,2]
[334885315,1723626667525,-500.0,0.00015616,2]
[334885317,1723626667535,-500.0,0.00015616,2]
[334885319,1723626667546,-500.0,0.00015616,2]
[334885321,1723626667555,-500.0,0.00015616,2]
[334885323,1723626667565,-500.0,0.00015616,2]
[334885325,1723626667575,-573.31,0.00015616,2]
[334885327,1723626667584,-500.0,0.00015616,2]
[334885329,1723626667597,-500.0,0.00015616,2]
[334885330,1723626667606,-500.0,0.00015616,2]
[334885332,1723626667616,-500.0,0.00015616,2]
[334885334,1723626667626,-500.0,0.00015616,2]
[334885336,1723626667636,-500.0,0.00015616,2]
[334885338,1723626667646,-783.31,0.00015616,2]
[334885340,1723626667656,-500.0,0.00015616,2]
[334885342,1723626667666,-500.0,0.00015616,2]
[334885344,1723626667676,-500.0,0.00015616,2]
[334885346,1723626667685,-500.0,0.00015616,2]
[334885348,1723626667695,-362.7214782,0.00015616,2]
[334885350,1723626667705,-520.19,0.00015616,2]
[334885352,1723626667716,-500.0,0.00015616,2]
[334885354,1723626667726,-500.0,0.00015616,2]
[334885356,1723626667735,-500.0,0.00015616,2]
[334885358,1723626667746,-500.0,0.00015616,2]
[334885360,1723626667756,-500.0,0.00015616,2]
[334885362,1723626667766,-397.98,0.00015616,2]
[334885364,1723626667776,-500.0,0.00015616,2]
[334885366,1723626667786,-500.0,0.00015616,2]
[334885368,1723626667796,-922.73,0.00015616,2]
[334885370,1723626667807,-500.0,0.00015616,2]
[334885372,1723626667817,-500.0,0.00015616,2]
[334885373,1723626667827,-500.0,0.00015616,2]
[334885375,1723626667836,-167.04381504,0.00015616,2]
[334885377,1723626667846,-830.91,0.00015616,2]
[334885379,1723626667856,-500.0,0.00015616,2]
[334885381,1723626667867,-500.0,0.00015616,2]
[334885383,1723626667877,-500.0,0.00015616,2]
[334885384,1723626667887,-690.05,0.00015616,2]
[334885385,1723626667896,-500.0,0.00015616,2]
[334885386,1723626667906,-500.0,0.00015616,2]
[334885387,1723626667916,-500.0,0.00015616,2]
[334885388,1723626667925,-818.44,0.00015616,2]
[334885389,1723626667935,-500.0,0.00015616,2]
[334885390,1723626667945,-500.0,0.00015616,2]
[334885391,1723626667955,-500.0,0.00015616,2]
[334885392,1723626667965,-500.0,0.00015616,2]
[334885393,1723626667975,-500.0,0.00015616,2]
[334885394,1723626667984,-500.0,0.00015616,2]
[334885395,1723626667994,-386.8738634,0.00015616,2]
[334885396,1723626668004,-542.84,0.00015616,2]
[334885397,1723626668013,-500.0,0.00015616,2]
[334885398,1723626668023,-500.0,0.00015616,2]
[334885399,1723626668032,-500.0,0.00015616,2]
[334885400,1723626668042,-500.0,0.00015616,2]
[334885401,1723626668051,-609.17,0.00015616,2]
[334885402,1723626668061,-500.0,0.00015616,2]
[334885403,1723626668071,-579.6,0.00015616,2]
[334885404,1723626668082,-500.0,0.00015616,2]
[334885405,1723626668091,-500.0,0.00015616,2]
[334885406,1723626668100,-653.02,0.00015616,2]
[334885407,1723626668110,-500.0,0.00015616,2]
[334885408,1723626668119,-175.633264,0.00015616,2]
[334885409,1723626668128,-500.0,0.00015616,2]
[334885410,1723626668138,-500.0,0.00015616,2]
[334885411,1723626668147,-2177.45,0.00015616,2]
[334885412,1723626668156,-1063.82,0.00015616,2]
[334885413,1723626668166,-500.0,0.00015616,2]
[334885414,1723626668175,-500.0,0.00015616,2]
[334885415,1723626668185,-845.57,0.00015616,2]
[334885416,1723626668194,-1527.58,0.00015616,2]
[334885417,1723626668204,-676.31,0.00015616,2]
[334885418,1723626668214,-500.0,0.00015616,2]
[334885419,1723626668224,-1715.7,0.00015616,2]
[334885421,1723626668233,-500.0,0.00015616,2]
[334885423,1723626668242,-754.95,0.00015616,2]
[334885425,1723626668252,-500.0,0.00015616,2]
[334885427,1723626668262,-972.03,0.00015616,2]
[334885429,1723626668271,-500.0,0.00015616,2]
[334885431,1723626668281,-524.53,0.00015616,2]
[334885433,1723626668291,-500.0,0.00015616,2]
[334885435,1723626668301,-500.0,0.00015616,2]
[334885437,1723626668311,-500.0,0.00015616,2]
[334885439,1723626668321,-770.2,0.00015616,2]
[334885441,1723626668331,-500.0,0.00015616,2]
[334885442,1723626668341,-2373.49,0.00015616,2]
[334885444,1723626668350,-608.38,0.00015616,2]
[334885446,1723626668360,-562.69,0.00015616,2]
[334885448,1723626668370,-644.93,0.00015616,2]
[334885450,1723626668379,-6691.92,0.00015616,2]
[334885452,1723626668389,-2731.88,0.00015616,2]
[334885454,1723626668399,-2589.64,0.00015616,2]
[334885456,1723626668408,-500.0,0.00015616,2]
[334885458,1723626668421,-552.38,0.00015616,2]
[334885460,1723626668430,-2632.4,0.00015616,2]
[334885462,1723626668440,-1402.43,0.00015616,2]
[334885463,1723626668450,-2123.25,0.00015616,2]
[334885465,1723626668461,-670.79,0.00015616,2]
[334885467,1723626668472,-759.51,0.00015616,2]
[334885469,1723626668482,-985.93,0.00015616,2]
[334885471,1723626668493,-500.0,0.00015616,2]
[334885473,1723626668503,-500.0,0.00015616,2]
[334885475,1723626668513,-3137.69,0.00015616,2]
[334885477,1723626668523,-1305.48,0.00015616,2]
[334885479,1723626668533,-500.0,0.00015616,2]
[334885481,1723626668542,-644.37,0.00015616,2]
[334885483,1723626668552,-1305.6,0.00015616,2]
[334885485,1723626668562,-500.0,0.00015616,2]
[334885487,1723626668572,-484.59535528,0.00015616,2]
[334885489,1723626668582,-536.79,0.00015616,2]
[334885491,1723626668593,-983.66,0.00015616,2]
[334885493,1723626668602,-500.0,0.00015616,2]
[334885494,1723626668612,-500.0,0.00015616,2]
[334885496,1723626668622,-677.53,0.00015616,2]
[334885498,1723626668631,-2121.13,0.00015616,2]
[334885500,1723626668641,-638.37,0.00015616,2]
[334885502,1723626668651,-759.39,0.00015616,2]
[334885504,1723626668661,-500.0,0.00015616,2]
[334885506,1723626668671,-500.0,0.00015616,2]
[334885508,1723626668681,-500.0,0.00015616,2]
[334885510,1723626668695,-500.0,0.00015616,2]
[334885512,1723626668705,-500.0,0.00015616,2]
[334885514,1723626668715,-500.0,0.00015616,2]
[334885516,1723626668732,-794.59,0.00015616,2]
[334885518,1723626668742,-500.0,0.00015616,2]
[334885520,1723626668753,-1352.79,0.00015616,2]
[334885522,1723626668763,-849.35,0.00015616,2]
[334885524,1723626668773,-655.62,0.00015616,2]
[334885526,1723626668782,-500.0,0.00015616,2]
[334885528,1723626668792,-500.0,0.00015616,2]
[334885530,1723626668802,-1159.21,0.00015616,2]
[334885532,1723626668811,-500.0,0.00015616,2]
[334885534,1723626668821,-500.0,0.00015616,2]
[334885536,1723626668832,-500.0,0.00015616,2]
[334885538,1723626668843,-733.33,0.00015616,2]
[334885540,1723626668854,-500.0,0.00015616,2]
[334885543,1723626668864,-500.0,0.00015616,2]
[334885545,1723626668875,-562.63,0.00015616,2]
[334885547,1723626668885,-1460.87,0.00015616,2]
[334885549,1723626668895,-996.55,0.00015616,2]
[334885551,1723626668906,-500.0,0.00015616,2]
[334885553,1723626668916,-1258.81,0.00015616,2]
[334885555,1723626668927,-500.0,0.00015616,2]
[334885557,1723626668937,-396.13839888,0.00015616,2]
[334885559,1723626668947,-682.77,0.00015616,2]
[334885561,1723626668957,-725.26,0.00015616,2]
[334885563,1723626668967,-604.11,0.00015616,2]
[334885565,1723626668977,-796.91,0.00015616,2]
[334885567,1723626668987,-678.33,0.00015616,2]
[334885569,1723626668997,-500.0,0.00015616,2]
[334885571,1723626669007,-500.0,0.00015616,2]
[334885573,1723626669018,-500.0,0.00015616,2]
[334885575,1723626669028,-500.0,0.00015616,2]
[334885577,1723626669039,-1036.99,0.00015616,2]
[334885578,1723626669049,-684.51,0.00015616,2]
[334885579,1723626669059,-2400.86,0.00015616,2]
[334885580,1723626669070,-1157.66,0.00015616,2]
[334885581,1723626669080,-2787.1,0.00015616,2]
[334885582,1723626669091,-1126.69,0.00015616,2]
[334885583,1723626669101,-500.0,0.00015616,2]
[334885584,1723626669111,-500.0,0.00015616,2]
[334885585,1723626669121,-1607.6,0.00015616,2]
[334885587,1723626669131,-500.0,0.00015616,2]
[334885589,1723626669142,-500.0,0.00015616,2]
[334885591,1723626669152,-500.0,0.00015616,2]
[334885593,1723626669162,-544.62,0.00015616,2]
[334885595,1723626669172,-780.32,0.00015616,2]
[334885597,1723626669182,-500.0,0.00015616,2]
[334885599,1723626669192,-507.47,0.00015616,2]
[334885601,1723626669202,-3758.29,0.00015616,2]
[334885603,1723626669212,-1854.98,0.00015616,2]
[334885605,1723626669222,-500.0,0.00015616,2]
[334885607,1723626669232,-500.0,0.00015616,2]
[334885609,1723626669243,-556.33,0.00015616,2]
[334885611,1723626669253,-642.83,0.00015616,2]
[334885613,1723626669263,-500.0,0.00015616,2]
[334885615,1723626669273,-500.0,0.00015616,2]
[334885617,1723626669284,-659.96,0.00015616,2]
[334885619,1723626669294,-635.37,0.00015616,2]
[334885621,1723626669304,-810.55,0.00015616,2]
[334885623,1723626669314,-500.0,0.00015616,2]
[334885625,1723626669324,-500.0,0.00015616,2]
[334885627,1723626669335,-253.85,0.00015616,2]
[334885629,1723626669344,-500.0,0.00015616,2]
[334885631,1723626669354,-500.0,0.00015616,2]
[334885633,1723626669365,-734.11,0.00015616,2]
[334885635,1723626669375,-893.45,0.00015616,2]
[334885637,1723626669385,-1023.98,0.00015616,2]
[334885639,1723626669396,-2346.66,0.00015616,2]
[334885641,1723626669406,-500.0,0.00015616,2]
[334885662,1723626669622,-7848.21,0.00015616,2]
[334885665,1723626669642,-500.0,0.00015616,2]
[334885667,1723626669652,-687.93,0.00015616,2]
[334885669,1723626669662,-743.2,0.00015616,2]
[334885671,1723626669672,-500.0,0.00015616,2]
[334885673,1723626669682,-500.0,0.00015616,2]
[334885675,1723626669692,-975.29,0.00015616,2]
[334885677,1723626669702,-500.0,0.00015616,2]
[334885679,1723626669712,-500.0,0.00015616,2]
[334885681,1723626669721,-5082.53716188,0.0001568,2]
[334885683,1723626669731,-214.0,0.0001571,2]
[334885685,1723626669741,-700.5,0.0001575,10]
[334885687,1723626669751,-823.0,0.00015787,2]
[334885689,1723626669761,-467.1444569,0.000158,2]
[334885691,1723626669771,-167.0,0.00015831,2]
[334885693,1723626669781,-167.0,0.00015831,2]
[334885695,1723626669791,-500.0,0.0001589,2]
[334885697,1723626669801,-601.4,0.0001589,2]
[334885699,1723626669811,-500.0,0.0001589,2]
[334885701,1723626669821,-849.17,0.0001589,2]
[334885703,1723626669830,-500.0,0.0001589,2]
[334885705,1723626669840,-500.0,0.0001589,2]
[334885707,1723626669851,-500.0,0.0001589,2]
[334885709,1723626669861,-392.55930191,0.0001589,2]
[334885711,1723626669871,-500.0,0.0001589,2]
[334885713,1723626669881,-500.0,0.0001589,2]
[334885715,1723626669891,-500.0,0.0001589,2]
[334885717,1723626669900,-561.57788865,0.0001589,2]
[334885719,1723626669910,-500.0,0.0001589,2]
[334885721,1723626669920,-500.0,0.0001589,2]
[334885723,1723626669930,-500.0,0.0001589,2]
[334885725,1723626669940,-500.0,0.0001589,2]
[334885727,1723626669950,-500.0,0.0001589,2]
[334885729,1723626669959,-500.0,0.0001589,2]
[334885731,1723626669969,-500.0,0.0001589,2]
[334885733,1723626669979,-500.0,0.0001589,2]
[334885735,1723626669988,-500.0,0.0001589,2]
[334885737,1723626669998,-512.44,0.0001589,2]
[334885739,1723626670007,-500.0,0.0001589,2]
[334885741,1723626670017,-500.0,0.0001589,2]
[334885743,1723626670027,-500.0,0.0001589,2]
[334885745,1723626670037,-678.29,0.0001589,2]
[334885747,1723626670046,-511.38,0.0001589,2]
[334885749,1723626670057,-500.0,0.0001589,2]
[334885751,1723626670067,-500.0,0.0001589,2]
[334885753,1723626670077,-500.0,0.0001589,2]
[334885755,1723626670086,-187.54816203,0.0001589,2]
[334885757,1723626670096,-496.09243376,0.0001589,2]
[334885759,1723626670106,-500.0,0.0001589,2]
[334885761,1723626670116,-372.8994808,0.0001589,2]
[334885763,1723626670125,-424.85956598,0.0001589,2]
[334885764,1723626670135,-500.0,0.0001589,2]
[334885766,1723626670144,-329.95327315,0.0001589,2]
[334885768,1723626670154,-500.0,0.0001589,2]
[334885770,1723626670163,-500.0,0.0001589,2]
[334885772,1723626670174,-1974.32,0.0001589,2]
[334885774,1723626670183,-507.60695572,0.0001589,2]
[334885776,1723626670192,-500.0,0.0001589,2]
[334885778,1723626670202,-500.0,0.0001589,2]
[334885780,1723626670212,-226.61,0.0001589,2]
[334885782,1723626670222,-500.0,0.0001589,2]
[334885784,1723626670231,-500.0,0.0001589,2]
[334885786,1723626670241,-500.0,0.0001589,2]
[334885788,1723626670251,-591.86,0.0001589,2]
[334885790,1723626670260,-666.36,0.0001589,2]
[334885792,1723626670270,-500.0,0.0001589,2]
[334885794,1723626670280,-500.0,0.0001589,2]
[334885796,1723626670289,-500.0,0.0001589,2]
[334885798,1723626670300,-500.0,0.0001589,2]
[334885800,1723626670310,-500.0,0.0001589,2]
[334885802,1723626670319,-554.42,0.0001589,2]
[334885804,1723626670329,-500.0,0.0001589,2]
[334885806,1723626670339,-500.0,0.0001589,2]
[334885808,1723626670349,-500.0,0.0001589,2]
[334885810,1723626670358,-500.0,0.0001589,2]
[334885812,1723626670368,-500.0,0.0001589,2]
[334885814,1723626670378,-500.0,0.0001589,2]
[334885816,1723626670388,-500.0,0.0001589,2]
[334885818,1723626670398,-500.0,0.0001589,2]
[334885820,1723626670407,-500.0,0.0001589,2]
[334885822,1723626670419,-500.0,0.0001589,2]
[334885824,1723626670433,-500.0,0.0001589,2]
[334885826,1723626670443,-500.0,0.0001589,2]
[334885828,1723626670452,-573.31,0.0001589,2]
[334885830,1723626670462,-500.0,0.0001589,2]
[334885832,1723626670475,-500.0,0.0001589,2]
[334885834,1723626670484,-500.0,0.0001589,2]
[334885836,1723626670495,-500.0,0.0001589,2]
[334885838,1723626670506,-500.0,0.0001589,2]
[334885840,1723626670516,-495.40610719,0.0001589,2]
[334885842,1723626670526,-783.31,0.0001589,2]
[334885844,1723626670535,-500.0,0.0001589,2]
[334885846,1723626670545,-500.0,0.0001589,2]
[334885848,1723626670556,-500.0,0.0001589,2]
[334885850,1723626670566,-500.0,0.0001589,2]
[334885852,1723626670576,-520.19,0.0001589,2]
[334885854,1723626670586,-500.0,0.0001589,2]
[334885856,1723626670597,-500.0,0.0001589,2]
[334885858,1723626670607,-382.80052505,0.0001589,2]
[334885860,1723626670617,-500.0,0.0001589,2]
[334885862,1723626670626,-500.0,0.0001589,2]
[334885864,1723626670637,-500.0,0.0001589,2]
[334885866,1723626670647,-500.0,0.0001589,2]
[334885868,1723626670656,-922.73,0.0001589,2]
[334885869,1723626670666,-500.0,0.0001589,2]
[334885871,1723626670675,-500.0,0.0001589,2]
[334885873,1723626670684,-500.0,0.0001589,2]
[334885875,1723626670694,-830.91,0.0001589,2]
[334885877,1723626670704,-500.0,0.0001589,2]
[334885879,1723626670714,-500.0,0.0001589,2]
[334885881,1723626670724,-500.0,0.0001589,2]
[334885883,1723626670735,-690.05,0.0001589,2]
[334885885,1723626670745,-500.0,0.0001589,2]
[334885887,1723626670755,-500.0,0.0001589,2]
[334885889,1723626670765,-500.0,0.0001589,2]
[334885891,1723626670774,-818.44,0.0001589,2]
[334885893,1723626670784,-500.0,0.0001589,2]
[334885895,1723626670794,-500.0,0.0001589,2]
[334885897,1723626670804,-500.0,0.0001589,2]
[334885899,1723626670814,-500.0,0.0001589,2]
[334885902,1723626670824,-500.0,0.0001589,2]
[334885904,1723626670834,-500.0,0.0001589,2]
[334885906,1723626670844,-542.84,0.0001589,2]
[334885908,1723626670854,-151.32844493,0.0001589,2]
[334885910,1723626670863,-500.0,0.0001589,2]
[334885912,1723626670873,-500.0,0.0001589,2]
[334885914,1723626670882,-500.0,0.0001589,2]
[334885916,1723626670892,-609.17,0.0001589,2]
[334885917,1723626670902,-500.0,0.0001589,2]
[334885918,1723626670911,-579.6,0.0001589,2]
[334885919,1723626670920,-500.0,0.0001589,2]
[334885920,1723626670930,-500.0,0.0001589,2]
[334885921,1723626670939,-653.02,0.0001589,2]
[334885922,1723626670949,-500.0,0.0001589,2]
[334885923,1723626670958,-500.0,0.0001589,2]
[334885924,1723626670967,-500.0,0.0001589,2]
[334885925,1723626670977,-2177.45,0.0001589,2]
[334885927,1723626670986,-1063.82,0.0001589,2]
[334885929,1723626670996,-500.0,0.0001589,2]
[334885931,1723626671005,-500.0,0.0001589,2]
[334885933,1723626671015,-845.57,0.0001589,2]
[334885935,1723626671027,-1527.58,0.0001589,2]
[334885937,1723626671037,-676.31,0.0001589,2]
[334885938,1723626671047,-500.0,0.0001589,2]
[334885939,1723626671057,-1715.7,0.0001589,2]
[334885940,1723626671066,-500.0,0.0001589,2]
[334885941,1723626671076,-754.95,0.0001589,2]
[334885942,1723626671086,-500.0,0.0001589,2]
[334885943,1723626671097,-972.03,0.0001589,2]
[334885944,1723626671108,-500.0,0.0001589,2]
[334885945,1723626671118,-524.53,0.0001589,2]
[334885946,1723626671128,-500.0,0.0001589,2]
[334885947,1723626671138,-500.0,0.0001589,2]
[334885948,1723626671147,-500.0,0.0001589,2]
[334885949,1723626671157,-770.2,0.0001589,2]
[334885950,1723626671167,-500.0,0.0001589,2]
[334885951,1723626671177,-608.38,0.0001589,2]
[334885952,1723626671187,-2373.49,0.0001589,2]
[334885953,1723626671197,-562.69,0.0001589,2]
[334885954,1723626671206,-644.93,0.0001589,2]
[334885955,1723626671216,-6691.92,0.0001589,2]
[334885956,1723626671226,-2731.88,0.0001589,2]
[334885957,1723626671235,-2589.64,0.0001589,2]
[334885958,1723626671245,-500.0,0.0001589,2]
[334885959,1723626671255,-552.38,0.0001589,2]
[334885960,1723626671264,-2632.4,0.0001589,2]
[334885961,1723626671274,-1402.43,0.0001589,2]
[334885962,1723626671285,-2123.25,0.0001589,2]
[334885963,1723626671295,-670.79,0.0001589,2]
[334885964,1723626671305,-759.51,0.0001589,2]
[334885965,1723626671314,-985.93,0.0001589,2]
[334885966,1723626671325,-500.0,0.0001589,2]
[334885967,1723626671335,-355.18719999,0.0001589,2]
[334885968,1723626671345,-3137.69,0.0001589,2]
[334885969,1723626671355,-1305.48,0.0001589,2]
[334885970,1723626671365,-500.0,0.0001589,2]
[334885971,1723626671374,-644.37,0.0001589,2]
[334885972,1723626671384,-1305.6,0.0001589,2]
[334885973,1723626671394,-500.0,0.0001589,2]
[334885974,1723626671404,-536.79,0.0001589,2]
[334885975,1723626671414,-983.66,0.0001589,2]
[334885976,1723626671428,-500.0,0.0001589,2]
[334885977,1723626671437,-500.0,0.0001589,2]
[334885978,1723626671447,-677.53,0.0001589,2]
[334885979,1723626671456,-2121.13,0.0001589,2]
[334885980,1723626671467,-638.37,0.0001589,2]
[334885981,1723626671476,-759.39,0.0001589,2]
[334885982,1723626671486,-500.0,0.0001589,2]
[334885983,1723626671498,-500.0,0.0001589,2]
[334885984,1723626671509,-500.0,0.0001589,2]
[334885985,1723626671518,-151.0,0.0001589,2]
[334885986,1723626671528,-255.05747634,0.0001589,2]
[334885987,1723626671539,-500.0,0.0001589,2]
[334885988,1723626671549,-500.0,0.0001589,2]
[334885989,1723626671558,-794.59,0.0001589,2]
[334885990,1723626671568,-500.0,0.0001589,2]
[334885991,1723626671578,-1352.79,0.0001589,2]
[334885992,1723626671588,-849.35,0.0001589,2]
[334885993,1723626671597,-655.62,0.0001589,2]
[334885994,1723626671607,-500.0,0.0001589,2]
[334885995,1723626671616,-500.0,0.0001589,2]
[334885996,1723626671626,-1159.21,0.0001589,2]
[334885997,1723626671635,-500.0,0.0001589,2]
[334885998,1723626671645,-500.0,0.0001589,2]
[334885999,1723626671655,-500.0,0.0001589,2]